fUSD/lending_fUSD_20260304
["ID","MTS","AMOUNT","RATE_DAILY","PERIOD"]
[407661638,1772627432022,-420.0,9.899e-05,2]
[407661639,1772627432033,-420.0,9.899e-05,2]
[407661640,1772627432044,-255.0,9.902e-05,2]
[407661641,1772627432056,-9000.0,0.0001,2]
[407661642,1772627432067,-151.0,0.00010241,2]
[407661643,1772627432078,-151.0,0.00010241,2]
[407661644,1772627432089,-151.0,0.00010241,2]
[407661645,1772627432099,-151.0,0.00010241,2]
[407661646,1772627432110,-151.0,0.00010241,2]
[407661647,1772627432121,-151.0,0.00010241,2]
[407661648,1772627432132,-151.0,0.00010241,2]
[407661649,1772627432142,-151.0,0.00010241,2]
[407661650,1772627432153,-151.0,0.00010241,2]
[407661651,1772627432164,-151.0,0.00010241,2]
[407661652,1772627432175,-151.0,0.00010241,2]
[407661653,1772627432186,-151.0,0.00010241,2]
[407661654,1772627432196,-151.0,0.00010241,2]
[407661655,1772627432206,-151.0,0.00010241,2]
[407661656,1772627432217,-151.0,0.00010241,2]
[407661657,1772627432229,-151.0,0.00010241,2]
[407661658,1772627432239,-153.38423145,0.00010241,2]
[407661659,1772627432250,-1048.31440419,0.00010247,2]
[407661660,1772627432353,-9604.53496843,0.00010247,2]
[407661661,1772627432364,-228.2590274,0.00010549,2]
[407661662,1772627432376,-1070.99,0.00010649,2]
[407661663,1772627432387,-2351.0,0.00010889,2]
[407661664,1772627432399,-587.0,0.00010889,2]
[407661665,1772627432410,-508.0,0.00010889,2]
[407661666,1772627432421,-360.0,0.00010892,2]
[407661667,1772627432431,-1070.99,0.0001121,2]
[407661668,1772627432441,-1148.33,0.00011507,2]
[407661669,1772627432452,-48.09600417,0.00011753,2]
[407661670,1772627432571,-304.60399583,0.00011753,2]
[407661671,1772627432582,-1448.5525,0.00011753,2]
[407661672,1772627432592,-1070.99,0.0001177,2]
[407661673,1772627432602,-4215.38091827,0.00011796,2]
[407661674,1772627432611,-823.0,0.00011978,2]
[407661675,1772627432621,-3292.0,0.00011978,2]
[407661676,1772627432632,-628.45,0.00011993,2]
[407661677,1772627432642,-500.0,0.00012,2]
[407661678,1772627432653,-988.28459692,0.00012,2]
[407661679,1772627432663,-500.0,0.00012,2]
[407661680,1772627432674,-748.83332692,0.00012,2]
[407661681,1772627432686,-500.0,0.00012,2]
[407661682,1772627432697,-500.0,0.00012,2]
[407661683,1772627432707,-500.0,0.00012,2]
[407661684,1772627432718,-500.0,0.00012,2]
[407661685,1772627432729,-500.0,0.00012,2]
[407661686,1772627432739,-500.0,0.00012,2]
[407661687,1772627432749,-500.0,0.00012,2]
[407661688,1772627432760,-500.0,0.00012,2]
[407661689,1772627432770,-500.0,0.00012,2]
[407661690,1772627432781,-500.0,0.00012,2]
[407661691,1772627432792,-765.56236833,0.00012,2]
[407661692,1772627432802,-500.0,0.00012,2]
[407661693,1772627432812,-500.0,0.00012,2]
[407661694,1772627432823,-190.04393757,0.00012,2]
[407661695,1772627432834,-500.0,0.00012,2]
[407661696,1772627432845,-500.0,0.00012,2]
[407661697,1772627432855,-500.0,0.00012,2]
[407661698,1772627432866,-500.0,0.00012,2]
[407661699,1772627432877,-533.65438981,0.00012,2]
[407661700,1772627432887,-500.0,0.00012,2]
[407661701,1772627432901,-495.00949798,0.00012,2]
[407661702,1772627432914,-556.72994091,0.00012,2]
[407661703,1772627432925,-209.65622988,0.00012251,2]
[407661704,1772627432937,-628.45,0.00012267,2]
[407661705,1772627432947,-1070.99,0.00012331,2]
[407661706,1772627432958,-628.45,0.00012541,2]
[407661707,1772627432968,-1049.31,0.00012715,2]
[407661708,1772627432980,-267.73190636,0.00012756,2]
[407661709,1772627432991,-607.65,0.00012776,2]
[407661710,1772627433001,-628.45,0.00012815,2]
[407661711,1772627433011,-200.0,0.00012848,2]
[407661712,1772627433022,-1070.99,0.00012891,2]
[407661713,1772627433032,-865.58,0.00012929,2]
[407661714,1772627433043,-628.45,0.00013089,2]
[407661715,1772627433053,-166.66,0.00013143,2]
[407661716,1772627433063,-1152.0,0.00013175,2]
[407661717,1772627433076,-3359.0,0.00013175,2]
[407661718,1772627433086,-628.45,0.00013363,2]
[407661719,1772627433096,-166.66,0.00013419,2]
[407661720,1772627433107,-1070.99,0.00013452,2]
[407661721,1772627433117,-166.66,0.00013618,2]
[407661722,1772627433127,-628.45,0.00013637,2]
[407661723,1772627433139,-166.66,0.00013696,2]
[407661724,1772627433150,-500.0,0.000139,2]
[407661725,1772627433160,-628.45421015,0.00013911,2]
[407661726,1772627433171,-166.66,0.00013973,2]
[407661727,1772627433182,-506.0,0.00014,2]
[407661728,1772627433192,-506.0,0.00014,2]
[407661729,1772627433202,-1070.99,0.00014012,2]
[407661730,1772627433213,-166.66,0.00014068,2]
[407661731,1772627433223,-166.66,0.00014249,2]
[407661732,1772627433234,-2160.82,0.00014265,2]
[407661733,1772627433244,-500.0,0.00014373,2]
[407661734,1772627433254,-500.0,0.00014373,2]
[407661735,1772627433265,-500.0,0.00014373,2]
[407661736,1772627433276,-500.0,0.00014373,2]
[407661737,1772627433293,-607.65,0.00014373,2]
[407661738,1772627433303,-1469.0,0.00014493,2]
[407661739,1772627433313,-166.66,0.00014517,2]
[407661740,1772627433323,-166.66,0.00014526,2]
[407661741,1772627433334,-1070.99,0.00014573,2]
[407661742,1772627433344,-166.66,0.00014967,2]
[407661743,1772627433354,-250.0,0.00015,2]
[407661744,1772627433365,-1070.99,0.00015133,2]
[407661745,1772627433375,-166.66,0.00015416,2]
[407661746,1772627433385,-1070.99,0.00015694,2]
[407661747,1772627433396,-166.66,0.00015866,2]
[407661748,1772627433406,-607.65,0.0001597,2]
[407661749,1772627433416,-1070.99,0.00016254,2]
[407661750,1772627433427,-1070.99,0.00016815,2]
[407661751,1772627433438,-315.74082907,0.00016973,2]
[407661752,1772627433449,-300.0,0.00017,2]
[407661753,1772627433458,-651.0,0.000173,5]
[407661754,1772627433469,-1070.99,0.00017375,2]
[407661755,1772627433479,-607.65,0.00017567,2]
[407661756,1772627433489,-300.0,0.000176,6]
[407661757,1772627433500,-600.0,0.000177,6]
[407661758,1772627433510,-157.92597998,0.000178,2]
[407661759,1772627433522,-3008.99871244,0.000178,2]
[407661760,1772627433532,-413.46020109,0.000178,2]
[407661761,1772627433543,-900.0,0.000178,6]
[407661762,1772627433554,-1049.31,0.000178,2]
[407661763,1772627433785,-274.0,0.00017863,2]
[407661764,1772627433795,-498.44553072,0.00017899,2]
[407661765,1772627433804,-500.0,0.00017899,2]
[407661766,1772627433814,-500.0,0.00017899,2]
[407661767,1772627433823,-500.0,0.00017899,2]
[407661768,1772627433832,-500.0,0.00017899,2]
[407661769,1772627433842,-500.0,0.00017899,2]
[407661770,1772627433851,-500.0,0.00017899,2]
[407661771,1772627433861,-510.60006379,0.00017899,2]
[407661772,1772627433870,-500.0,0.00017899,2]
[407661773,1772627433880,-500.0,0.00017899,2]
[407661774,1772627433889,-500.0,0.00017899,2]
[407661775,1772627433899,-500.0,0.00017899,2]
[407661776,1772627433910,-500.0,0.00017899,2]
[407661777,1772627433920,-500.0,0.00017899,2]
[407661778,1772627433930,-500.0,0.00017899,2]
[407661779,1772627433939,-500.0,0.00017899,2]
[407661780,1772627433949,-482.10450217,0.00017899,2]
[407661781,1772627433959,-230.98606825,0.00017899,2]
[407661782,1772627433969,-164.29,0.000179,2]
[407661783,1772627433979,-1200.0,0.000179,6]
[407661784,1772627433989,-1070.99,0.00017936,2]
[407661785,1772627433999,-602.06361303,0.00017999,2]
[407661786,1772627434009,-1070.99,0.00018496,2]
[407661787,1772627434018,-1070.99,0.00019057,2]
[407661788,1772627434027,-607.65,0.00019164,2]
[407661789,1772627434036,-24007.88,0.000192,2]
[407661790,1772627434046,-41.81877755,0.00019617,2]
[407661791,1772627434059,-1029.17122245,0.00019617,2]
[407661792,1772627434068,-1070.99,0.00020178,2]
[407661793,1772627434077,-1070.99,0.00020738,2]
[407661794,1772627434087,-3008.99871235,0.00020975,2]
[407661795,1772627434097,-1070.99,0.00021299,2]
[407661796,1772627434107,-200.0,0.00022,2]
[407661797,1772627434116,-457.01749535,0.00022371,2]
[407661798,1772627434126,-150.99,0.00022562,2]
[407661799,1772627434135,-499.99,0.00022562,2]
[407661800,1772627434145,-9999.99,0.00022562,2]
[407661801,1772627434155,-150.99,0.00022562,2]
[407661802,1772627434164,-7737.44,0.00022562,2]
[407661803,1772627434173,-299.99,0.00022562,7]
[407661804,1772627434183,-1148.33,0.00023043,2]
[407661805,1772627434192,-2458.0,0.00024013,2]
[407661806,1772627434201,-547.034,0.00024013,2]
[407661807,1772627434210,-150.28265019,0.00024135,2]
[407661808,1772627434220,-150.0,0.00024135,2]
[407661809,1772627434230,-150.0,0.00024135,2]
[407661810,1772627434239,-152.89812037,0.00024135,2]
[407661811,1772627434249,-154.2065447,0.00024135,2]
[407661812,1772627434258,-150.0,0.00024135,2]
[407661813,1772627434268,-150.0,0.00024135,2]
[407661814,1772627434277,-150.0,0.00024135,2]
[407661815,1772627434287,-150.0,0.00024135,2]
[407661816,1772627434296,-150.0,0.00024135,2]
[407661817,1772627434306,-150.0,0.00024135,2]
[407661818,1772627434315,-150.0,0.00024135,2]
[407661819,1772627434324,-150.0,0.00024135,2]
[407661820,1772627434334,-150.0,0.00024135,2]
[407661821,1772627434343,-158.17888341,0.00024135,2]
[407661822,1772627434353,-150.0,0.00024135,2]
[407661823,1772627434362,-150.0,0.00024135,2]
[407661824,1772627434371,-150.0,0.00024135,2]
[407661825,1772627434380,-150.0,0.00024135,2]
[407661826,1772627434389,-150.0,0.00024135,2]
[407661827,1772627434399,-3008.99871235,0.0002415,2]
[407661828,1772627434408,-150.0,0.0002419,2]
[407661829,1772627434418,-150.0,0.0002419,2]
[407661830,1772627434427,-150.0,0.0002419,2]
[407661831,1772627434437,-150.0,0.0002419,2]
[407661832,1772627434446,-150.0,0.0002419,2]
[407661833,1772627434456,-150.0,0.0002419,2]
[407661834,1772627434466,-150.0,0.0002419,2]
[407661835,1772627434476,-150.0,0.0002419,2]
[407661836,1772627434486,-150.0,0.0002419,2]
[407661837,1772627434496,-150.0,0.0002419,2]
[407661838,1772627434505,-150.0,0.0002419,2]
[407661839,1772627434515,-150.0,0.00024245,2]
[407661840,1772627434528,-200.0,0.00024245,2]
[407661841,1772627434538,-150.0,0.00024245,2]
[407661842,1772627434548,-200.0,0.00024272,4]
[407661843,1772627434557,-200.0,0.00024272,4]
[407661844,1772627434566,-500.0,0.00024272,4]
[407661845,1772627434576,-500.0,0.00024272,4]
[407661846,1772627434585,-500.0,0.00024272,4]
[407661847,1772627434595,-500.0,0.00024272,4]
[407661848,1772627434604,-500.0,0.00024272,4]
[407661849,1772627434614,-500.0,0.00024272,4]
[407661850,1772627434623,-500.0,0.00024272,4]
[407661851,1772627434633,-500.0,0.00024272,4]
[407661852,1772627434643,-500.0,0.00024272,4]
[407661853,1772627434655,-500.0,0.00024272,4]
[407661854,1772627434665,-500.0,0.00024272,4]
[407661855,1772627434674,-500.0,0.00024272,4]
[407661856,1772627434684,-500.0,0.00024272,4]
[407661857,1772627434695,-151.0,0.00024272,4]
[407661858,1772627434704,-244.72563135,0.00024272,4]
[407661859,1772627434717,-255.27436865,0.00024272,4]
[407661860,1772627434727,-500.0,0.00024272,4]
[407661861,1772627434737,-151.0,0.00024272,4]
[407661862,1772627434747,-500.0,0.00024272,4]
[407661863,1772627434757,-151.0,0.00024272,4]
[407661864,1772627434766,-500.0,0.00024272,4]
[407661865,1772627434776,-151.0,0.00024272,4]
[407661866,1772627434785,-500.0,0.00024272,4]
[407661867,1772627434795,-151.0,0.00024272,4]
[407661868,1772627434804,-500.0,0.00024272,4]
[407661869,1772627434814,-151.0,0.00024272,4]
[407661870,1772627434824,-500.0,0.00024272,4]
[407661871,1772627434833,-151.0,0.00024272,4]
[407661872,1772627434844,-500.0,0.00024272,4]
[407661873,1772627434853,-151.0,0.00024272,4]
[407661874,1772627434862,-500.0,0.00024272,4]
[407661875,1772627434872,-151.0,0.00024272,4]
[407661876,1772627434882,-151.0,0.00024272,4]
[407661877,1772627434891,-151.0,0.00024272,4]
[407661878,1772627434903,-150.0,0.00024299,2]
[407661879,1772627434916,-150.0,0.00024299,2]
[407661880,1772627434925,-3240.0,0.00024328,2]
[407661881,1772627434935,-150.0,0.00024354,2]
[407661882,1772627434945,-192.33838515,0.00024354,2]
[407661883,1772627434955,-1678.9004031,0.0002437,2]
[407661884,1772627434965,-164.0,0.0002437,7]
[407661885,1772627434975,-1678.9004029,0.0002437,2]
[407661886,1772627434987,-4902.2975462,0.0002437,2]
[407661887,1772627434996,-500.0,0.00024371,2]
[407661888,1772627435006,-523.63690189,0.00024371,2]
[407661889,1772627435016,-200.0,0.00024372,2]
[407661890,1772627435026,-250.0,0.00024409,2]
[407661891,1772627435036,-151.0,0.00024473,2]
[407661892,1772627435046,-200.0,0.00024473,5]
[407661893,1772627435056,-200.0,0.00024473,5]
[407661894,1772627435067,-280.0,0.00024473,5]
[407661895,1772627435077,-151.0,0.00024473,2]
[407661896,1772627435086,-159.85360117,0.00024478,120]
[407661897,1772627435096,-827.23321721,0.00024478,120]
[407661898,1772627435106,-155.42115474,0.00024478,120]
[407661899,1772627435116,-1000.0,0.00024658,2]
[407661900,1772627435125,-150.0,0.00024658,2]
[407661901,1772627435135,-151.0,0.00024897,7]
[407661902,1772627435148,-82097.87129782,0.000249,3]
[407661903,1772627435160,-170686.33694138,0.000249,3]
[407661904,1772627437731,-480.196095,8.887e-05,2]
[407661905,1772627437741,-267.60775996,0.00024658,2]
[407661906,1772627437750,-151.0,0.00024658,2]
[407661907,1772627437760,-151.0,0.00024658,2]
[407661908,1772627437771,-1378.82684254,0.000249,3]
[407661909,1772627437792,-1771.165,0.000249,3]
[407661910,1772627437805,-35883.10007301,0.000249,3]
[407661911,1772627437815,-593.41340116,0.000249,3]
[407661912,1772627437848,-950.20546961,0.000249,3]
[407661913,1772627437859,-1626.15102215,0.000249,3]
[407661914,1772627437871,-2738.91994935,0.000249,3]
[407661915,1772627437883,-2956.1503163,0.000249,3]
[407661916,1772627437894,-447.34282137,0.000249,3]
[407661917,1772627437906,-1679.29915473,0.000249,3]
[407661918,1772627437921,-4166.59453607,0.000249,3]
[407661919,1772627437932,-1244.377,0.000249,3]
[407661920,1772627437943,-321.81678208,0.000249,3]
[407661921,1772627438019,-1176.555,0.000249,3]
[407661922,1772627438031,-1276.78651,0.000249,3]
[407662065,1772627439986,-256.3660735,0.00024658,2]
[407662066,1772627439996,-98.90717104,0.000249,3]
[407662067,1772627440007,-178474.53970009,0.000249,3]
[407662068,1772627440479,-547.03466666,0.00024013,2]
[407662132,1772627443295,-47.2007687,0.00024013,2]
[407662133,1772627443307,-1119.23256464,0.00024013,2]
[407662134,1772627443316,-5963.2910526,0.000249,3]
[407662135,1772627443328,-948.59889422,0.000249,3]
[407662136,1772627443340,-2741.20287812,0.000249,3]
[407662137,1772627443353,-1030.1308482,0.000249,3]
[407662138,1772627443363,-1208.45596407,0.000249,3]
[407662139,1772627443375,-623.16483502,0.000249,3]
[407662140,1772627443386,-2509.07303865,0.000249,3]
[407662141,1772627443397,-553.09022308,0.000249,3]
[407662142,1772627443441,-4939.51232533,0.000249,3]
[407662154,1772627445626,-5210.25793956,0.000249,3]
[407662155,1772627445637,-1656.93746345,0.000249,3]
[407662156,1772627445646,-1290.53991971,0.000252,7]
[407662157,1772627445658,-5179.70175118,0.000252,7]
[407662158,1772627445845,-17537.63832911,0.000252,7]
[407662159,1772627445855,-153.57,0.00025375,2]
[407662160,1772627445864,-275.3885982,0.00025413,2]
[407662161,1772627445873,-500.0,0.00025413,2]
[407662162,1772627445884,-500.0,0.00025413,2]
[407662163,1772627445893,-500.0,0.00025413,2]
[407662164,1772627445903,-500.0,0.00025413,2]
[407662165,1772627445915,-500.0,0.00025413,2]
[407662166,1772627445924,-500.0,0.00025413,2]
[407662167,1772627445933,-500.0,0.00025413,2]
[407662168,1772627445942,-500.0,0.00025413,2]
[407662169,1772627445953,-174.61919141,0.00025413,2]
[407662170,1772627445963,-500.0,0.00025413,2]
[407662171,1772627445972,-500.0,0.00025413,2]
[407662173,1772627445982,-500.0,0.00025413,2]
[407662175,1772627445991,-693.3919763,0.00025413,2]
[407662177,1772627446000,-151.0,0.00025413,2]
[407662179,1772627446009,-364.83048626,0.00025413,2]
[407662181,1772627446018,-719.04747942,0.00025468,2]
[407662183,1772627446027,-151.0,0.00025468,2]
[407662185,1772627446036,-745.65223616,0.00025523,2]
[407662187,1772627446045,-151.0,0.00025523,2]
[407662189,1772627446054,-773.2413689,0.00025578,2]
[407662191,1772627446064,-274.00152663,0.00025578,2]
[407662193,1772627446073,-801.85129955,0.00025633,2]
[407662195,1772627446082,-5770.0,0.00025643,2]
[407662197,1772627446091,-831.51979763,0.00025688,2]
[407662199,1772627446100,-862.28603014,0.00025743,2]
[407662201,1772627446109,-894.19061326,0.00025798,2]
[407662203,1772627446119,-927.27566595,0.00025853,2]
[407662205,1772627446127,-150.0,0.0002589,2]
[407662207,1772627446138,-2000.0,0.000259,2]
[407662209,1772627446148,-961.58486559,0.00025908,2]
[407662210,1772627446159,-997.16350561,0.00025963,2]
[407662211,1772627446168,-397.863,0.00027013,2]
[407662212,1772627446178,-150.0,0.00027185,2]
[407662213,1772627446187,-3008.99871235,0.00027324,2]
[407662214,1772627446196,-153.57,0.00027326,2]
[407662215,1772627446206,-2106.051,0.00027397,2]
[407662216,1772627446215,-300.0,0.00027397,2]
[407662217,1772627446225,-1000.0,0.00027397,20]
[407662218,1772627446235,-530.16445669,0.00027397,5]
[407662219,1772627446245,-150.0,0.00027397,5]
[407662220,1772627446254,-160.33716485,0.00027397,5]
[407662221,1772627446263,-1093.8504365,0.00027458,2]
[407662222,1772627446273,-1738.216,0.000279,18]
[407662223,1772627446282,-250.0,0.00027945,5]
[407662224,1772627446291,-281.35758222,0.00028,60]
[407662225,1772627446304,-244.071023,0.00028146,2]
[407662226,1772627446323,-24007.88,0.000282,7]
[407662227,1772627446332,-808.006346,0.000282,2]
[407662228,1772627446342,-10000.0,0.0002827,30]
[407662229,1772627446351,-479.49592934,0.00028493,5]
[407662230,1772627446360,-150.0,0.00028544,2]
[407662231,1772627446369,-153.57,0.00029278,2]
[407662232,1772627446378,-2000.0,0.000296,2]
[407662233,1772627446387,-150.0,0.00029971,2]
[407662234,1772627446396,-66545.00014388,0.0003,5]
[407662235,1772627446413,-9303.40528673,0.0003,5]
[407662236,1772627446424,-625.37356307,0.0003,5]
[407662257,1772628631872,-351.5299975,0.00017799,2]
[407662258,1772628631884,-842.92945522,0.00017799,2]
[407662259,1772628631894,-600.0,0.00017849,2]
[407662260,1772628631903,-300.0,0.00017898,2]
[407662261,1772628631913,-500.0,0.00017899,2]
[407662262,1772628631923,-500.0,0.00017899,2]
[407662263,1772628631933,-500.0,0.00017899,2]
[407662265,1772628631944,-500.0,0.00017899,2]
[407662267,1772628631954,-194.87334623,0.00017899,2]
[407662269,1772628631964,-420.0,0.00019531,2]
[407662270,1772628631973,-323.31091499,0.00019579,2]
[407662271,1772628631983,-600.0,0.00019579,2]
[407662272,1772628631993,-1298.66966015,0.00019579,2]
[407662274,1772628632002,-600.0,0.0002045,2]
[407662276,1772628632012,-600.0,0.0002045,2]
[407662278,1772628632021,-600.0,0.0002045,2]
[407662280,1772628632030,-360.0088316,0.00023375,2]
[407662282,1772628632039,-2000.0,0.000236,2]
[407662284,1772628632049,-2685.45,0.00024658,2]
[407662286,1772628632058,-150.0,0.00024658,2]
[407662288,1772628632067,-693.3919763,0.00024923,2]
[407662290,1772628632076,-719.04747942,0.00024978,2]
[407662293,1772628632086,-745.65223616,0.00025033,2]
[407662296,1772628632095,-773.2413689,0.00025088,2]
[407662298,1772628632104,-801.85129955,0.00025143,2]
[407662300,1772628632113,-831.51979763,0.00025198,2]
[407662302,1772628632123,-862.28603014,0.00025253,2]
[407662304,1772628632132,-894.19061326,0.00025308,2]
[407662306,1772628632141,-927.27566595,0.00025363,2]
[407662308,1772628632156,-194.3481396,0.00025418,2]
[407662310,1772628632167,-767.23672599,0.00025418,2]
[407662312,1772628632177,-997.16350561,0.00025473,2]
[407662314,1772628632186,-150.0,0.0002589,2]
[407662316,1772628632196,-1000.0,0.00026071,2]
[407662318,1772628632206,-153.58,0.00026107,2]
[407662320,1772628632216,-9817.69,0.00026143,2]
[407662322,1772628632225,-200.0,0.00026311,2]
[407662324,1772628632235,-150.0,0.00026492,2]
[407662326,1772628632245,-208.19,0.00026492,2]
[407662328,1772628632256,-208.19,0.00027155,2]
[407662330,1772628632266,-1000.0,0.00027169,2]
[407662332,1772628632275,-150.0,0.00027185,2]
[407662334,1772628632285,-2000.0,0.000273,2]
[407662335,1772628632294,-300.0,0.00027397,2]
[407662337,1772628632303,-208.19,0.00027817,2]
[407662339,1772628632312,-5000.0,0.00027917,2]
[407662341,1772628632323,-186.828,0.00027917,18]
[407662343,1772628632332,-1390.572,0.00027917,18]
[407662345,1772628632342,-500.0,0.00028272,2]
[407662347,1772628632351,-500.0,0.00028272,2]
[407662349,1772628632361,-500.0,0.00028272,2]
[407662351,1772628632369,-500.0,0.00028272,2]
[407662353,1772628632378,-500.0,0.00028272,2]
[407662355,1772628632388,-500.0,0.00028272,2]
[407662357,1772628632397,-500.0,0.00028272,2]
[407662359,1772628632407,-500.0,0.00028272,2]
[407662360,1772628632417,-500.0,0.00028272,2]
[407662361,1772628632426,-500.0,0.00028272,2]
[407662362,1772628632436,-500.0,0.00028272,2]
[407662363,1772628632445,-500.0,0.00028272,2]
[407662364,1772628632455,-500.0,0.00028272,2]
[407662365,1772628632464,-377.3597684,0.00028272,2]
[407662366,1772628632476,-122.6402316,0.00028272,2]
[407662367,1772628632485,-500.0,0.00028272,2]
[407662368,1772628632495,-500.0,0.00028272,2]
[407662369,1772628632504,-500.0,0.00028272,2]
[407662370,1772628632514,-500.0,0.00028272,2]
[407662371,1772628632526,-500.0,0.00028272,2]
[407662372,1772628632536,-500.0,0.00028272,2]
[407662373,1772628632545,-500.0,0.00028272,2]
[407662374,1772628632554,-500.0,0.00028272,2]
[407662375,1772628632563,-500.0,0.00028272,2]
[407662376,1772628632572,-500.0,0.00028272,2]
[407662377,1772628632581,-151.0,0.00028272,2]
[407662378,1772628632591,-500.0,0.00028272,2]
[407662379,1772628632600,-500.0,0.00028272,2]
[407662380,1772628632609,-151.0,0.00028272,2]
[407662381,1772628632619,-500.0,0.00028272,2]
[407662382,1772628632628,-518.69824551,0.00028272,2]
[407662383,1772628632637,-151.0,0.00028272,2]
[407662384,1772628632646,-500.0,0.00028272,2]
[407662385,1772628632655,-151.0,0.00028272,2]
[407662386,1772628632665,-500.0,0.00028272,2]
[407662387,1772628632675,-151.0,0.00028272,2]
[407662388,1772628632684,-151.0,0.00028272,2]
[407662389,1772628632693,-151.0,0.00028272,2]
[407662390,1772628632703,-151.0,0.00028272,2]
[407662391,1772628632716,-151.0,0.00028272,2]
[407662392,1772628632726,-151.0,0.00028272,2]
[407662393,1772628632735,-151.0,0.00028272,2]
[407662394,1772628632744,-151.0,0.00028272,2]
[407662395,1772628632754,-14511.00273243,0.00028289,2]
[407662396,1772628632765,-1824.42726757,0.00028289,2]
[407662397,1772628632775,-208.19,0.00028479,2]
[407662398,1772628632784,-2000.0,0.00028507,120]
[407662399,1772628632794,-150.0,0.00028544,2]
[407662400,1772628632803,-208.19,0.00029141,2]
[407662401,1772628632812,-153.58,0.0002937,2]
[407662402,1772628632822,-4135.0614,0.000294,2]
[407662403,1772628632831,-989.46,0.0002949,10]
[407662404,1772628632840,-824.55,0.0002949,10]
[407662405,1772628632850,-29201.6694,0.000295,2]
[407662406,1772628632859,-3485.5671,0.000295,2]
[407662407,1772628632868,-2024.54370342,0.000297,2]
[407662408,1772628632877,-2500.0,0.000297,2]
[407662409,1772628632887,-1176.64680001,0.00029701,2]
[407662410,1772628632896,-25512.3418519,0.000298,7]
[407662411,1772628632912,-4216.72013541,0.000298,7]
[407662420,1772628637811,-262.23977462,0.000298,7]
[407662421,1772628637869,-500.0,0.000298,7]
[407662422,1772628637925,-451.08306836,0.000298,7]
[407662423,1772628637936,-5334.59535141,0.000298,7]
[407662424,1772628638093,-500.0,0.000298,7]
[407662511,1772628640131,-1135.96567531,0.00025573,2]
[407662512,1772628640190,-560.90650664,0.00025573,2]
[407662513,1772628640251,-347.053942,0.00025573,2]
[407662514,1772628640690,-414.07387605,0.00025573,2]
[407662515,1772628640700,-1167.84139743,0.00028573,2]
[407662527,1772628646242,-1290.15860257,0.00028573,2]
[407662529,1772628646256,-63515.6996924,0.000298,7]
[407662531,1772628646267,-1864.3022862,0.000298,2]
[407662532,1772628646431,-5000.0,0.000298,2]
[407662533,1772628646445,-350.85253435,0.000298,2]
[407662534,1772628646457,-1122.85371295,0.000298,2]
[407662535,1772628646467,-177.23747598,0.000298,2]
[407662536,1772628646477,-7902.3171927,0.0002989,3]
[407662537,1772628646488,-341.04,0.0002989,3]
[407662538,1772628646499,-500.0,0.0002989,3]
[407662539,1772628646511,-440.09636129,0.0002989,3]
[407662540,1772628646522,-4310.20552034,0.0002989,3]
[407662541,1772628646534,-409.2793642,0.0002989,3]
[407662542,1772628646545,-1026.38678502,0.0002989,3]
[407662543,1772628646557,-96843.21852545,0.0002989,3]
[407662544,1772628646566,-681.69735738,0.0002989,2]
[407662545,1772628646575,-500.0,0.00029899,2]
[407662546,1772628646585,-500.0,0.00029899,2]